bitfinex/quotes_BTCUSD_20250814
["timestamp","ask_amount","ask_price","bid_price","bid_amount"]
[1755175639502,0.03346376,119550.0,119530.0,0.0245664]
[1755175639613,0.01521429,119550.0,119530.0,0.2514064]
[1755175640039,0.01821429,119550.0,119530.0,0.2514064]
[1755175640263,0.01821429,119550.0,119530.0,0.2525664]
[1755175640484,0.01821429,119550.0,119530.0,0.2514064]
[1755175640687,0.20405893,119550.0,119530.0,0.0245664]
[1755175640885,0.21242363,119550.0,119530.0,0.22676]
[1755175641086,0.17567347,119540.0,119530.0,0.22672]
[1755175641393,0.01521429,119540.0,119520.0,0.2512864]
[1755175641583,0.17568811,119530.0,119490.0,0.20066]
[1755175641831,0.027271,119530.0,119500.0,0.2512464]
[1755175642016,0.17570317,119520.0,119490.0,0.28338325]
[1755175642263,0.01521429,119520.0,119510.0,0.22664]
[1755175642679,0.1825503,119520.0,119510.0,0.22664]
[1755175642943,0.01521429,119520.0,119510.0,0.22664]
[1755175643141,0.26826355,119520.0,119510.0,0.22664]
[1755175643323,0.26826355,119520.0,119490.0,0.2006]
[1755175643324,0.16735886,119510.0,119490.0,0.2006]
[1755175643528,0.16736401,119500.0,119480.0,0.2510864]
[1755175643730,0.01521429,119500.0,119480.0,0.2510864]
[1755175645437,0.01521429,119500.0,119480.0,0.2511564]
[1755175645685,0.01621429,119500.0,119480.0,0.2511564]
[1755175645935,0.01621429,119500.0,119490.0,0.2264]
[1755175646147,0.02610804,119500.0,119490.0,0.2264]
[1755175646361,0.01621429,119500.0,119490.0,0.2264]
[1755175646579,0.01621429,119500.0,119480.0,0.0245664]
[1755175646791,0.11029574,119500.0,119480.0,0.22628]
[1755175647020,0.10092754,119500.0,119480.0,0.22628]
[1755175647273,0.27129229,119500.0,119480.0,0.22628]
[1755175647493,0.16737879,119490.0,119470.0,0.0245664]
[1755175647769,0.09793754,119490.0,119480.0,0.22624]
[1755175648221,0.01521429,119490.0,119480.0,0.22624]
[1755175648428,0.01521429,119490.0,119480.0,0.2529864]
[1755175648631,0.02122,119550.0,119520.0,0.0245664]
[1755175648843,0.08272325,119550.0,119530.0,0.22612]
[1755175649048,0.10394325,119550.0,119530.0,0.22612]
[1755175649423,0.08272325,119550.0,119530.0,0.22612]
[1755175649661,0.26964701,119550.0,119530.0,0.22604]
[1755175649866,0.2612798,119550.0,119510.0,0.0283464]
[1755175650039,0.17568811,119530.0,119520.0,0.22604]
[1755175650336,0.1757102,119520.0,119490.0,0.0246264]
[1755175650539,0.44394325,119530.0,119510.0,0.226]
[1755175650741,0.37248233,119550.0,119510.0,0.27884304]
[1755175650874,0.42272325,119550.0,119510.0,0.27562304]
[1755175651077,0.59001764,119550.0,119520.0,0.00322]
[1755175651288,0.59201764,119550.0,119530.0,0.22592]
[1755175651507,0.02122,119540.0,119530.0,0.22592]
[1755175652380,0.61123768,119550.0,119530.0,0.22592]
[1755175652492,0.02122,119540.0,119530.0,0.22592]
[1755175652718,0.61123733,119550.0,119530.0,0.22592]
[1755175653178,0.61323733,119550.0,119530.0,0.22592]
[1755175653401,0.16730801,119540.0,119520.0,0.00322]
[1755175653647,0.16730801,119540.0,119520.0,0.22588]
[1755175654340,0.16732366,119530.0,119510.0,0.0245664]
[1755175654551,0.25841301,119530.0,119510.0,0.2256]
[1755175654819,0.16736213,119510.0,119490.0,0.0245664]
[1755175654978,0.16736213,119510.0,119500.0,0.22556]
[1755175655377,0.26144288,119510.0,119480.0,0.0245664]
[1755175655590,0.16737802,119490.0,119480.0,0.22552]
[1755175655999,0.27429726,119500.0,119480.0,0.22552]
[1755175656214,0.27329726,119500.0,119480.0,0.22552]
[1755175656426,0.44193325,119500.0,119480.0,0.22548]
[1755175656627,0.41772325,119500.0,119480.0,0.2254]
[1755175656833,0.34,119500.0,119470.0,0.0268664]
[1755175657037,0.34,119500.0,119480.0,0.2499264]
[1755175657450,0.3493661,119530.0,119490.0,0.0246264]
[1755175657669,0.08272325,119520.0,119500.0,0.22532]
[1755175658240,0.02122,119510.0,119500.0,0.22528]
[1755175658479,0.25842681,119520.0,119480.0,0.08272325]
[1755175658480,0.27964691,119520.0,119480.0,0.0245664]
[1755175658713,0.27964691,119520.0,119500.0,0.22528]
[1755175658714,0.16735001,119510.0,119500.0,0.22528]
[1755175658926,0.10394325,119510.0,119500.0,0.22528]
[1755175659134,0.27129326,119510.0,119500.0,0.22528]
[1755175659343,0.16737745,119500.0,119480.0,0.0246264]
[1755175659563,0.17574692,119490.0,119450.0,0.54438]
[1755175659777,0.16739454,119480.0,119460.0,0.2497264]
[1755175659982,0.16737802,119490.0,119460.0,0.2526764]
[1755175660185,0.16737802,119490.0,119460.0,0.0275164]
[1755175660394,0.2827089,119500.0,119460.0,0.0275164]
[1755175660598,0.43794595,119500.0,119470.0,0.22801]
[1755175660819,0.6265305,119500.0,119470.0,0.2496464]
[1755175661021,0.6265305,119500.0,119480.0,0.00295]
[1755175661244,0.6265305,119500.0,119480.0,0.22799]
[1755175661448,0.6265305,119500.0,119480.0,0.22791]
[1755175661660,0.6265305,119500.0,119480.0,0.22496]
[1755175661661,0.16737802,119490.0,119480.0,0.22496]
[1755175661874,0.19096962,119490.0,119460.0,0.0275164]
[1755175662087,0.16740663,119470.0,119450.0,0.0245664]
[1755175662337,0.18092933,119470.0,119450.0,0.0245664]
[1755175662550,0.18092933,119470.0,119450.0,0.2494464]
[1755175662761,0.01521626,119470.0,119450.0,0.2523964]
[1755175663011,0.01521626,119470.0,119450.0,0.28476054]
[1755175663225,0.01521626,119470.0,119450.0,0.2523964]
[1755175664006,0.01721626,119470.0,119450.0,0.2523964]
[1755175664274,0.18462342,119470.0,119450.0,0.2523964]
[1755175664478,0.18262342,119470.0,119450.0,0.0275164]
[1755175664684,0.16742177,119460.0,119420.0,0.76664379]
[1755175664915,0.18263803,119460.0,119440.0,0.0245664]
[1755175665129,0.16743407,119450.0,119440.0,0.2246]
[1755175665337,0.16743407,119450.0,119440.0,0.2491664]
[1755175665544,0.01519974,119450.0,119440.0,0.0245664]
[1755175665749,0.01519974,119450.0,119440.0,0.2491664]
[1755175665951,0.18263381,119450.0,119440.0,0.2491664]
[1755175666185,0.01519974,119450.0,119440.0,0.2491664]
[1755175666592,0.18263381,119450.0,119440.0,0.2521164]
[1755175666821,0.01519974,119450.0,119440.0,0.2491664]
[1755175667031,0.18263381,119450.0,119440.0,0.22444]
[1755175667462,0.18263381,119450.0,119430.0,0.0248564]
[1755175667635,0.18263381,119450.0,119440.0,0.22444]
[1755175667851,0.18363381,119450.0,119440.0,0.22444]
[1755175668058,0.16744809,119440.0,119430.0,0.0248564]
[1755175668199,0.16843407,119450.0,119440.0,0.22436]
[1755175668401,0.18362133,119450.0,119440.0,0.22436]
[1755175668625,0.18362133,119450.0,119420.0,0.0036424]
[1755175668839,0.18362133,119450.0,119420.0,0.0040024]
[1755175669198,0.18262133,119450.0,119420.0,0.0040024]
[1755175669434,0.18262133,119450.0,119420.0,0.00036]
[1755175669635,0.1674491,119440.0,119410.0,0.20064]
[1755175669837,0.16746211,119430.0,119410.0,0.20358]
[1755175670056,0.16747613,119420.0,119410.0,0.22416]
[1755175670263,0.18266339,119420.0,119410.0,0.22416]
[1755175670470,0.16750223,119410.0,119390.0,0.0004]
[1755175670677,0.50750418,119400.0,119390.0,0.0004]
[1755175670904,0.54404904,119400.0,119390.0,0.0004]
[1755175671513,0.62677229,119400.0,119390.0,0.0004]
[1755175671954,0.62979229,119400.0,119390.0,0.0004]
[1755175672586,0.28979229,119400.0,119390.0,0.0004]
[1755175672790,0.28975865,119400.0,119390.0,0.0004]
[1755175673001,0.29375865,119400.0,119390.0,0.0004]
[1755175673416,0.51367865,119400.0,119390.0,0.0004]
[1755175673841,0.51867865,119400.0,119390.0,0.0004]
[1755175674269,0.51367865,119400.0,119390.0,0.0004]
[1755175674478,0.85367865,119400.0,119390.0,0.0004]
[1755175674708,0.85967865,119400.0,119390.0,1e-08]
[1755175674909,1.60885744,119400.0,119390.0,1e-08]
[1755175675264,1.72437744,119400.0,119390.0,1e-08]
[1755175676019,1.02519865,119400.0,119390.0,1e-08]
[1755175676249,1.72437744,119400.0,119390.0,1e-08]
[1755175676661,0.52890388,119370.0,119360.0,0.0004]
[1755175676838,0.61162713,119370.0,119360.0,0.0004]
[1755175677427,0.61464713,119370.0,119360.0,0.0004]
[1755175677684,1.31382592,119370.0,119360.0,0.0004]
[1755175677887,1.5668412,119370.0,119360.0,0.0004]
[1755175678210,0.84954873,119370.0,119360.0,0.0004]
[1755175678424,0.64119468,119370.0,119360.0,0.0004]
[1755175678621,0.61162713,119370.0,119360.0,0.0004]
[1755175678833,0.08272325,119370.0,119360.0,0.00068]
[1755175679112,0.27162713,119370.0,119360.0,0.0004]
[1755175679839,1.19408592,119370.0,119360.0,0.0004]
[1755175680073,0.49490713,119370.0,119360.0,0.0004]
[1755175680248,0.27162713,119370.0,119360.0,0.0004]
[1755175680451,0.003,119370.0,119360.0,0.00174]
[1755175680887,0.003,119370.0,119360.0,1.11163379]
[1755175681095,0.003,119370.0,119360.0,1.26269695]
[1755175681325,0.0005,119390.0,119360.0,0.56251816]
[1755175681531,0.0005,119390.0,119370.0,0.00034]
[1755175681740,0.1680186,119390.0,119370.0,0.00034]
[1755175681946,0.25074382,119390.0,119370.0,0.00034]
[1755175682161,0.16753224,119380.0,119370.0,0.00034]
[1755175682375,0.28047733,119390.0,119360.0,0.0004]
[1755175682575,0.28047733,119390.0,119370.0,0.00195]
[1755175682576,0.27997733,119390.0,119370.0,0.00195]
[1755175682785,0.16753311,119380.0,119360.0,0.0004]
[1755175683000,0.16754628,119370.0,119360.0,0.0004]
[1755175683200,0.16753311,119380.0,119360.0,0.0004]
[1755175683440,0.27159936,119390.0,119360.0,0.0004]
[1755175683654,0.27160167,119390.0,119360.0,0.0004]
[1755175683866,0.27260167,119390.0,119360.0,0.0004]
[1755175684269,0.16753233,119380.0,119360.0,0.0004]
[1755175684482,0.27997758,119390.0,119360.0,0.0004]
[1755175684686,0.001,119380.0,119360.0,0.00187]
[1755175684897,0.16853287,119380.0,119360.0,0.00187]
[1755175685109,0.16754628,119370.0,119360.0,0.0004]
[1755175685346,0.25026953,119370.0,119360.0,0.0004]
[1755175685753,0.25026953,119370.0,119350.0,0.0004]
[1755175685754,0.18891792,119360.0,119350.0,0.0004]
[1755175685993,0.99883996,119360.0,119350.0,0.0004]
[1755175686199,0.51232741,119360.0,119350.0,0.0004]
[1755175686440,0.47284357,119360.0,119350.0,0.0004]
[1755175686635,0.17591168,119380.0,119350.0,0.00159]
[1755175686836,0.08272325,119370.0,119350.0,0.00159]
[1755175687043,0.43783102,119380.0,119360.0,0.00063]
[1755175687255,0.34,119380.0,119350.0,0.0004]
[1755175687458,0.19722316,119410.0,119370.0,0.00063]
[1755175687666,0.27370488,119410.0,119370.0,0.00063]
[1755175688093,0.19723734,119400.0,119360.0,0.49371825]
[1755175688297,0.001,119370.0,119360.0,0.289785]
[1755175688515,0.001,119370.0,119350.0,0.0004]
[1755175688731,0.1685469,119370.0,119350.0,0.0004]
[1755175688937,0.001,119370.0,119350.0,0.0004]
[1755175689355,0.16855537,119370.0,119350.0,0.0004]
[1755175689565,0.16155537,119370.0,119350.0,0.0004]
[1755175689792,0.20402463,119380.0,119360.0,0.00133]
[1755175690002,0.17589439,119390.0,119370.0,0.001]
[1755175690203,0.2737514,119390.0,119370.0,0.00218]
[1755175690418,0.2737514,119390.0,119370.0,0.00118]
[1755175690419,0.01513376,119390.0,119370.0,0.00118]
[1755175690619,0.20400957,119390.0,119380.0,0.00117]
[1755175690768,0.20400957,119390.0,119360.0,0.00118]
[1755175690769,0.16754869,119370.0,119360.0,0.00118]
[1755175690975,0.16854869,119370.0,119350.0,0.0004]
[1755175691381,0.16756032,119360.0,119350.0,0.0004]
[1755175691788,0.18990629,119370.0,119350.0,0.0004]
[1755175692153,0.08372325,119370.0,119350.0,0.0016]
[1755175692364,0.01616161,119370.0,119350.0,0.0016]
[1755175692565,0.01516161,119370.0,119360.0,0.00121]
[1755175692822,0.53727304,119380.0,119360.0,0.00121]
[1755175693023,0.03651956,119380.0,119360.0,0.00121]
[1755175693618,0.01516196,119380.0,119360.0,0.00121]
[1755175693821,0.001,119370.0,119360.0,0.00121]
[1755175694058,0.001,119370.0,119350.0,0.0004]
[1755175694268,0.01518774,119370.0,119360.0,0.22168]
[1755175694479,0.0213576,119410.0,119360.0,0.72688768]
[1755175694684,0.16751911,119390.0,119370.0,0.08410325]
[1755175694891,0.18270933,119390.0,119370.0,0.2229]
[1755175695097,0.01519096,119390.0,119370.0,0.2229]
[1755175695306,0.01519096,119390.0,119370.0,0.26063208]
[1755175695730,0.01519096,119390.0,119380.0,0.00021]
[1755175695931,0.01519096,119390.0,119380.0,0.78211204]
[1755175696140,0.38891554,119440.0,119380.0,0.78575444]
[1755175696141,0.17588794,119440.0,119380.0,0.78575444]
[1755175696354,0.09793657,119440.0,119390.0,0.42845962]
[1755175696568,0.29511585,119440.0,119400.0,0.92049879]
[1755175696781,0.29511585,119440.0,119400.0,1.00322204]
[1755175696782,0.09793657,119440.0,119400.0,1.00322204]
[1755175696994,0.16746229,119430.0,119410.0,0.00161]
[1755175697204,0.19104896,119430.0,119400.0,0.08272325]
[1755175697429,0.01521332,119430.0,119410.0,0.22429]
[1755175697621,0.01521332,119430.0,119410.0,0.22124]
[1755175698152,0.01521332,119430.0,119410.0,0.22112]
[1755175698571,0.01522476,119430.0,119410.0,0.22316]
[1755175699161,0.18268724,119430.0,119410.0,0.22316]
[1755175699356,0.18268724,119430.0,119410.0,0.22112]
[1755175699557,0.17585168,119420.0,119410.0,0.22096]
[1755175699760,0.1910753,119420.0,119390.0,0.00204]
[1755175699965,0.1910753,119420.0,119400.0,0.22088]
[1755175700394,0.01522476,119420.0,119400.0,0.22088]
[1755175700576,0.1827029,119420.0,119400.0,0.22088]
[1755175701099,0.1910767,119420.0,119400.0,0.22076]
[1755175701460,0.01522476,119420.0,119400.0,0.22181]
[1755175701657,0.01522476,119420.0,119410.0,0.00105]
[1755175701865,0.18270106,119420.0,119400.0,0.22076]
[1755175702106,0.19107486,119420.0,119410.0,0.22064]
[1755175702281,0.01522476,119420.0,119410.0,0.22064]
[1755175702692,0.18270089,119420.0,119410.0,0.22064]
[1755175703000,0.18370089,119420.0,119410.0,0.22064]
[1755175703382,0.17586651,119410.0,119380.0,0.00305]
[1755175703582,0.16753224,119380.0,119370.0,0.22044]
[1755175703784,0.01522476,119380.0,119370.0,0.37557193]
[1755175703986,0.002,119420.0,119390.0,0.3436424]
[1755175704186,0.002,119420.0,119410.0,0.69917879]
[1755175704372,0.0213576,119450.0,119410.0,0.69917879]
[1755175704373,0.22036,119440.0,119410.0,0.69917879]
[1755175704574,0.39618107,119440.0,119410.0,0.07333212]
[1755175704818,0.30631325,119440.0,119390.0,0.34]
[1755175705034,0.22024,119430.0,119410.0,0.00305]
[1755175705434,0.08272325,119440.0,119410.0,0.00305]
[1755175705585,0.08272325,119440.0,119400.0,0.0036424]
[1755175705586,0.08272325,119440.0,119420.0,0.00305]
[1755175706194,0.22008,119430.0,119420.0,0.00305]
[1755175706393,0.38754218,119430.0,119400.0,0.77331619]
[1755175706601,0.47349549,119430.0,119400.0,0.00303]
[1755175706826,0.17586567,119410.0,119380.0,0.0741274]
[1755175707028,0.17589544,119390.0,119360.0,0.070455]
[1755175707285,0.38753303,119380.0,119360.0,0.070455]
[1755175707498,0.38753303,119380.0,119350.0,0.0004]
[1755175707499,0.16754828,119370.0,119350.0,0.0004]
[1755175707700,0.21992,119360.0,119350.0,0.0004]
[1755175707903,0.47020357,119360.0,119350.0,0.0004]
[1755175708116,1.53396996,119360.0,119350.0,0.0004]
[1755175708321,1.54880895,119360.0,119350.0,0.0004]
[1755175708964,0.84963016,119360.0,119350.0,0.0004]
[1755175709576,0.16764183,119320.0,119270.0,0.570515]
[1755175709778,0.1676727,119280.0,119270.0,0.567465]
[1755175709982,0.3873527,119280.0,119270.0,0.567465]
[1755175710173,0.1890029,119300.0,119270.0,0.567465]
[1755175710397,0.08272325,119290.0,119270.0,0.570515]
[1755175710594,0.17602724,119300.0,119270.0,0.570515]
[1755175710595,0.6201077,119300.0,119270.0,0.570515]
[1755175710750,0.38725935,119290.0,119270.0,0.50305]
[1755175710953,0.1676727,119280.0,119270.0,0.5]
[1755175711141,0.2536126,119290.0,119270.0,0.5]
[1755175711351,0.3871927,119280.0,119270.0,0.5]
[1755175711545,0.3802927,119280.0,119270.0,0.5]
[1755175711775,0.30216325,119280.0,119270.0,0.5]
[1755175711992,0.30212325,119280.0,119270.0,0.5]
[1755175712445,0.46979595,119280.0,119270.0,0.5]
[1755175712655,0.00323,119300.0,119270.0,0.5]
[1755175712801,0.001,119290.0,119270.0,0.55023]
[1755175713002,0.001,119290.0,119270.0,0.55]
[1755175713230,0.22032,119290.0,119270.0,0.55]
[1755175713435,0.30204325,119290.0,119270.0,0.50302]
[1755175713605,0.25039595,119280.0,119270.0,0.5]
[1755175713819,0.59239595,119280.0,119270.0,0.5]
[1755175714264,0.25039595,119280.0,119270.0,0.5]
[1755175714467,0.47282595,119280.0,119270.0,0.5]
[1755175714710,0.83418355,119280.0,119270.0,0.5]
[1755175715244,0.81282595,119280.0,119270.0,0.5]
[1755175715697,1.53336234,119280.0,119270.0,0.5]
[1755175715898,1.36726355,119280.0,119270.0,0.48]
[1755175716034,0.88720476,119280.0,119270.0,0.48]
[1755175716239,0.88704476,119280.0,119270.0,0.48]
[1755175716443,0.64672716,119280.0,119270.0,0.48]
[1755175716659,0.88696476,119280.0,119270.0,0.48]
[1755175716875,0.64872716,119280.0,119270.0,0.48]
[1755175717119,0.88896476,119280.0,119270.0,0.48]
[1755175717275,0.66685476,119280.0,119270.0,0.48]
[1755175717473,0.09978,119280.0,119270.0,0.48]
[1755175717730,0.30352325,119280.0,119270.0,0.48]
[1755175717932,0.31854,119280.0,119270.0,0.48]
[1755175718136,0.2674527,119280.0,119270.0,0.48]
[1755175718339,0.8291427,119280.0,119270.0,0.48]
[1755175718546,0.8505003,119280.0,119270.0,0.48]
[1755175718756,1.55278681,119280.0,119270.0,0.46786365]
[1755175718966,1.70078681,119280.0,119270.0,0.45948546]
[1755175719171,1.70078681,119280.0,119270.0,0.01606962]
[1755175719397,1.70078681,119280.0,119270.0,0.00769143]
[1755175719601,0.9985003,119280.0,119270.0,0.00769143]
[1755175719811,0.9985003,119280.0,119250.0,0.0004]
[1755175719812,0.52905842,119260.0,119250.0,0.0004]
[1755175720024,1.54768493,119260.0,119250.0,0.0004]
[1755175720226,0.88648473,119260.0,119250.0,0.0004]
[1755175720638,1.58877124,119260.0,119250.0,0.0004]
[1755175721054,1.58861124,119260.0,119250.0,0.0004]
[1755175721468,0.66792473,119260.0,119250.0,0.0004]
[1755175721642,0.88632473,119260.0,119250.0,0.0004]
[1755175721846,1.58861124,119260.0,119250.0,0.0004]
[1755175722048,1.59161124,119260.0,119250.0,0.0014]
[1755175722255,1.57655449,119260.0,119250.0,0.0014]
[1755175722455,1.57643449,119260.0,119250.0,0.0014]
[1755175722882,0.87117798,119260.0,119250.0,0.0014]
[1755175723158,0.63158038,119260.0,119250.0,0.0014]
[1755175723378,0.87410798,119260.0,119250.0,0.0014]
[1755175723630,0.68207956,119260.0,119250.0,0.0014]
[1755175723815,0.08572325,119260.0,119250.0,0.0014]
[1755175724026,0.003,119260.0,119250.0,0.0014]
[1755175724664,0.59042407,119260.0,119250.0,0.0004]
[1755175724876,1.31699818,119260.0,119250.0,0.0004]
[1755175725082,1.31899818,119260.0,119250.0,0.0014]
[1755175725500,1.53695818,119260.0,119250.0,0.0014]
[1755175725725,0.52907248,119250.0,119240.0,0.0004]
[1755175725976,1.31701224,119250.0,119240.0,0.0004]
[1755175726217,0.83260573,119250.0,119240.0,0.0004]
[1755175726447,1.53489224,119250.0,119240.0,0.0004]
[1755175726650,1.54849978,119250.0,119240.0,0.0004]
[1755175727099,0.84621327,119250.0,119240.0,0.0004]
[1755175727299,1.54849978,119250.0,119240.0,0.0004]
[1755175727770,0.16774301,119230.0,119220.0,0.5004]
[1755175728025,0.83247386,119230.0,119220.0,0.5004]
[1755175728235,0.61475386,119230.0,119220.0,0.5004]
[1755175728653,0.82950386,119230.0,119220.0,0.5004]
[1755175728867,0.82942386,119230.0,119220.0,0.5004]
[1755175729072,0.83235386,119230.0,119220.0,0.5004]
[1755175729714,0.61475386,119230.0,119220.0,0.5004]
[1755175729928,1.53460037,119230.0,119220.0,0.5004]
[1755175730140,0.61582386,119230.0,119220.0,0.5014]
[1755175730608,0.83326386,119230.0,119220.0,0.5014]
[1755175730813,1.53848037,119230.0,119220.0,0.5014]
[1755175731019,1.53848037,119230.0,119220.0,0.49302321]
[1755175731229,1.5784542,119230.0,119220.0,0.04694093]
[1755175731437,0.87608769,119230.0,119220.0,0.03856414]
[1755175731675,1.34604037,119230.0,119220.0,0.03856414]
[1755175731958,1.34604037,119230.0,119220.0,0.03018187]
[1755175731959,1.53832037,119230.0,119220.0,0.03018187]
[1755175732211,0.83310386,119230.0,119220.0,0.03018187]
[1755175732441,0.87013117,119180.0,119130.0,0.00275821]
[1755175732658,0.17622258,119200.0,119140.0,0.2218424]
[1755175732867,0.34,119190.0,119160.0,0.0036424]
[1755175733082,0.34,119190.0,119170.0,0.21716]
[1755175733083,0.50780074,119190.0,119170.0,0.21716]
[1755175733324,0.25053664,119180.0,119170.0,0.21712]
[1755175733757,0.50780074,119190.0,119170.0,0.21712]
[1755175733985,0.50780074,119190.0,119170.0,0.3336824]
[1755175733986,0.1678004,119190.0,119170.0,0.3336824]
[1755175734179,0.16781339,119180.0,119170.0,0.3336424]
[1755175734595,0.001,119180.0,119170.0,0.3336424]
[1755175734812,0.001,119180.0,119170.0,0.36700664]
[1755175735015,0.001,119180.0,119170.0,0.3336424]
[1755175735185,0.00838785,119220.0,119190.0,0.0036424]
[1755175735393,0.1677834,119210.0,119200.0,0.2205624]
[1755175735566,0.1677834,119210.0,119180.0,0.0036424]
[1755175735768,0.16778523,119200.0,119190.0,0.21688]
[1755175735968,0.16779931,119190.0,119180.0,0.0036424]
[1755175736173,0.16779931,119190.0,119180.0,0.2204824]
[1755175736450,0.16779931,119190.0,119180.0,0.001]
[1755175736596,0.16779931,119190.0,119180.0,0.2178]
[1755175736775,0.16779931,119190.0,119180.0,0.001]
[1755175737026,0.16782424,119180.0,119160.0,0.0036424]
[1755175737177,0.17623453,119160.0,119120.0,0.61332]
[1755175737404,0.08272325,119170.0,119120.0,0.61332]
[1755175737604,0.08272325,119170.0,119130.0,0.11501854]
[1755175737605,0.25055109,119170.0,119130.0,0.11501854]
[1755175737858,0.25894246,119170.0,119140.0,0.001]
[1755175738142,0.08272325,119170.0,119140.0,0.001]
[1755175738377,0.25894285,119170.0,119130.0,0.32956]
[1755175738760,0.27505776,119170.0,119140.0,0.21656]
[1755175739229,0.16784182,119160.0,119140.0,0.21656]
[1755175739453,0.08272325,119160.0,119140.0,0.21656]
[1755175739682,0.09785999,119160.0,119150.0,0.001]
[1755175739910,0.08272325,119160.0,119150.0,0.001]
[1755175740344,0.01515784,119160.0,119150.0,0.001]
[1755175740554,0.51618927,119190.0,119150.0,0.001]
[1755175740791,0.00839137,119170.0,119160.0,0.00316]
[1755175741014,0.27410027,119170.0,119140.0,0.21656]
[1755175741269,0.25056553,119160.0,119140.0,0.00416]
[1755175741482,0.26572299,119160.0,119150.0,0.21624]
[1755175741688,0.26572299,119160.0,119140.0,0.00316]
[1755175741904,0.16785564,119150.0,119120.0,0.5004]
[1755175742256,0.27412913,119150.0,119130.0,0.21928]
[1755175742508,0.08272325,119140.0,119130.0,0.21924]
[1755175742764,0.09788071,119140.0,119130.0,0.21604]
[1755175742995,0.16788382,119130.0,119120.0,0.5004]
[1755175743223,0.2505967,119140.0,119130.0,0.21608]
[1755175743458,0.26573218,119140.0,119130.0,0.21608]
[1755175743686,0.26573218,119140.0,119130.0,0.21596]
[1755175743923,0.09785873,119140.0,119130.0,0.21596]
[1755175744149,0.16788382,119130.0,119120.0,0.5004]
[1755175744389,0.2657417,119130.0,119120.0,0.71632]
[1755175744625,0.2657417,119130.0,119120.0,0.5004]
[1755175745309,1.31095821,119130.0,119120.0,0.5004]
[1755175745543,1.33595821,119130.0,119120.0,0.5004]
[1755175745778,1.33595821,119130.0,119120.0,0.11841625]
[1755175746062,0.16795431,119080.0,119070.0,0.5210361]
[1755175746283,0.16795431,119080.0,119070.0,0.7367561]
[1755175746284,0.09785788,119080.0,119070.0,0.7367561]
[1755175746510,0.09781392,119080.0,119070.0,0.7366761]
[1755175746741,0.01509067,119080.0,119070.0,0.7366761]
[1755175746973,0.17632422,119100.0,119070.0,0.7366761]
[1755175747204,0.09781418,119100.0,119070.0,0.7335161]
[1755175747435,0.01509093,119100.0,119080.0,0.09006209]
[1755175747673,0.17626392,119140.0,119080.0,0.49373709]
[1755175747916,0.176293,119120.0,119090.0,0.21866]
[1755175748147,0.176293,119120.0,119090.0,0.00314]
[1755175748148,0.08272325,119110.0,119090.0,0.00314]
[1755175748384,0.08272325,119110.0,119100.0,0.21548]
[1755175748638,0.34,119130.0,119100.0,0.21862]
[1755175748869,0.25900142,119130.0,119100.0,0.21548]
[1755175749108,0.25900142,119130.0,119110.0,0.2154]
[1755175749346,0.25900142,119130.0,119080.0,0.32917]
[1755175749347,0.25901746,119120.0,119080.0,0.32917]
[1755175749586,0.08272325,119120.0,119090.0,0.21842]
[1755175749825,0.17626392,119140.0,119100.0,0.00314]
[1755175750051,0.070475,119150.0,119110.0,0.21842]
[1755175750289,0.08272325,119140.0,119120.0,0.00314]
[1755175750530,0.08272325,119130.0,119100.0,0.00314]
[1755175750766,0.25060717,119130.0,119100.0,0.00314]
[1755175750996,0.16789791,119120.0,119110.0,0.21516]
[1755175751225,0.25062116,119120.0,119110.0,0.21512]
[1755175751458,0.08272325,119120.0,119110.0,0.21512]
[1755175751691,0.70328651,119130.0,119110.0,0.00314]
[1755175751692,0.001,119130.0,119110.0,0.00314]
[1755175751922,0.08272325,119120.0,119110.0,0.21508]
[1755175752425,0.25062116,119120.0,119110.0,0.21508]
[1755175752662,0.001,119130.0,119110.0,0.21822]
[1755175752892,0.001,119130.0,119100.0,0.001]
[1755175752893,0.9937001,119120.0,119100.0,0.001]
[1755175753115,0.17092201,119110.0,119100.0,0.21596]
[1755175753338,0.95593177,119110.0,119100.0,0.21596]
[1755175753794,0.25063526,119110.0,119100.0,0.21496]
[1755175754013,0.08272325,119110.0,119100.0,0.21496]
[1755175754274,0.001,119120.0,119100.0,0.2181]
[1755175754502,0.17632264,119100.0,119080.0,0.00314]
[1755175754732,0.16792611,119100.0,119090.0,0.2148]
[1755175754974,0.25903086,119110.0,119090.0,0.2148]
[1755175755214,0.26203086,119110.0,119100.0,0.00489]
[1755175755640,0.25903086,119110.0,119100.0,0.21969]
[1755175755865,0.60204086,119110.0,119100.0,0.21957]
[1755175756356,0.60204086,119110.0,119100.0,0.00489]
[1755175757410,1.30131737,119110.0,119100.0,0.00489]
[1755175757636,1.30432737,119110.0,119100.0,0.00489]
[1755175758078,0.60604086,119110.0,119100.0,0.00489]
[1755175758290,1.33332737,119110.0,119100.0,0.00489]
[1755175758512,1.68139737,119110.0,119100.0,0.00489]
[1755175758945,0.98211086,119110.0,119100.0,0.00489]
[1755175759156,1.65931737,119110.0,119100.0,0.00489]
[1755175759387,0.50795431,119080.0,119070.0,0.5178761]
[1755175759603,0.61641371,119080.0,119070.0,0.5178761]
[1755175759805,0.59368756,119080.0,119070.0,0.5178761]
[1755175760025,1.29597407,119080.0,119070.0,0.5178761]
[1755175760884,0.59368756,119080.0,119070.0,0.5178761]
[1755175761336,1.29597407,119080.0,119070.0,0.5178761]
[1755175761542,0.61641371,119080.0,119070.0,0.5178761]
[1755175761761,0.65412597,119080.0,119070.0,0.5178761]
[1755175762016,0.08272325,119080.0,119070.0,0.5178761]
[1755175762230,1.33703716,119080.0,119070.0,0.5178761]
[1755175762689,1.35210238,119080.0,119070.0,0.5178761]
[1755175762902,1.59122238,119080.0,119070.0,0.5178761]
[1755175763112,0.67481587,119080.0,119070.0,0.5178761]
[1755175763323,0.64981587,119080.0,119070.0,0.5178761]
[1755175763537,0.64680587,119080.0,119070.0,0.5178761]
[1755175763751,0.59367756,119080.0,119070.0,0.7319561]
[1755175764376,0.08272325,119080.0,119070.0,0.7319561]
[1755175764606,0.01507731,119100.0,119070.0,0.80829171]
[1755175764810,0.002,119080.0,119070.0,0.80515171]
[1755175765023,0.002,119080.0,119070.0,0.7319561]
[1755175765243,0.2590469,119100.0,119070.0,0.7319561]
[1755175765473,0.01509333,119100.0,119080.0,0.00314]
[1755175765682,0.02348895,119120.0,119080.0,0.13112884]
[1755175765917,0.27411198,119120.0,119090.0,0.00314]